fUST/lending_fUST_20250408
["ID","MTS","AMOUNT","RATE_DAILY","PERIOD"]
[357488143,1744084238641,-743.65,0.00020772,2]
[357488144,1744084238651,-500.0,0.00020772,2]
[357488145,1744084238660,-645.71,0.00020772,2]
[357488146,1744084238671,-435.50990064,0.00020772,2]
[357488147,1744084238681,-500.0,0.00020772,2]
[357488148,1744084238691,-500.0,0.00020772,2]
[357488149,1744084238701,-500.0,0.00020772,2]
[357488150,1744084238711,-500.0,0.00020772,2]
[357488151,1744084238722,-500.0,0.00020772,2]
[357488152,1744084238735,-500.0,0.00020772,2]
[357488153,1744084238745,-840.25,0.00020772,2]
[357488154,1744084238756,-3039.19,0.00020772,2]
[357488155,1744084238766,-815.31,0.00020772,2]
[357488156,1744084238776,-500.0,0.00020772,2]
[357488157,1744084238786,-500.0,0.00020772,2]
[357488158,1744084238796,-500.0,0.00020772,2]
[357488159,1744084238807,-500.0,0.00020772,2]
[357488160,1744084238816,-500.0,0.00020772,2]
[357488161,1744084238826,-500.0,0.00020772,2]
[357488162,1744084238836,-500.0,0.00020772,2]
[357488163,1744084238846,-289.42016195,0.00020772,2]
[357488164,1744084238859,-210.57983805,0.00020772,2]
[357488165,1744084238869,-500.0,0.00020772,2]
[357488166,1744084238879,-500.0,0.00020772,2]
[357488167,1744084238890,-500.0,0.00020772,2]
[357488168,1744084238899,-500.0,0.00020772,2]
[357488169,1744084238909,-282.5027821,0.00020772,2]
[357488170,1744084238922,-217.4972179,0.00020772,2]
[357488171,1744084238932,-500.0,0.00020772,2]
[357488172,1744084238942,-500.0,0.00020772,2]
[357488173,1744084238953,-375.48316274,0.00020772,2]
[357488174,1744084238962,-527.65,0.00020772,2]
[357488175,1744084238972,-500.0,0.00020772,2]
[357488176,1744084238982,-680.96,0.00020772,2]
[357488177,1744084238992,-500.0,0.00020772,2]
[357488178,1744084239004,-1561.27,0.00020772,2]
[357488179,1744084239017,-500.0,0.00020772,2]
[357488180,1744084239029,-500.0,0.00020772,2]
[357488181,1744084239039,-500.0,0.00020772,2]
[357488182,1744084239051,-500.0,0.00020772,2]
[357488183,1744084239061,-500.0,0.00020772,2]
[357488184,1744084239071,-500.0,0.00020772,2]
[357488185,1744084239082,-218.19178843,0.00020772,2]
[357488186,1744084239094,-500.0,0.00020772,2]
[357488187,1744084239104,-528.96,0.00020772,2]
[357488188,1744084239114,-821.16,0.00020772,2]
[357488189,1744084239124,-677.69,0.00020772,2]
[357488190,1744084239135,-677.69,0.00020772,2]
[357488191,1744084239145,-500.0,0.00020772,2]
[357488192,1744084239157,-500.0,0.00020772,2]
[357488193,1744084239168,-500.0,0.00020772,2]
[357488194,1744084239179,-500.0,0.00020772,2]
[357488195,1744084239192,-500.0,0.00020772,2]
[357488196,1744084239202,-500.0,0.00020772,2]
[357488197,1744084239212,-221.19675806,0.00020873,2]
[357488198,1744084239223,-297.03013789,0.00020935,2]
[357488199,1744084239232,-200.0,0.00020935,2]
[357488200,1744084239243,-500.0,0.00020945,2]
[357488201,1744084239253,-500.0,0.00020946,2]
[357488202,1744084239263,-500.0,0.00020946,2]
[357488203,1744084239273,-500.0,0.00020946,2]
[357488204,1744084239283,-500.0,0.00020946,2]
[357488205,1744084239293,-500.0,0.00020946,2]
[357488206,1744084239304,-500.0,0.00020946,2]
[357488207,1744084239314,-500.0,0.00020946,2]
[357488208,1744084239324,-272.04,0.00020946,2]
[357488209,1744084239334,-370000.0,0.00020947,2]
[357488210,1744084239343,-500.0,0.00020973,2]
[357488211,1744084239353,-500.0,0.00020973,2]
[357488212,1744084239363,-500.0,0.00021043,2]
[357488213,1744084239374,-500.0,0.00021043,2]
[357488214,1744084239384,-500.0,0.00021044,2]
[357488215,1744084239395,-152.04184998,0.00021044,2]
[357488216,1744084239405,-500.0,0.00021044,2]
[357488217,1744084239415,-500.0,0.00021044,2]
[357488218,1744084239425,-500.0,0.00021044,2]
[357488219,1744084239435,-500.0,0.00021044,2]
[357488220,1744084239444,-500.0,0.00021044,2]
[357488221,1744084239454,-500.0,0.00021044,2]
[357488222,1744084239463,-500.0,0.00021044,2]
[357488223,1744084239473,-521.50206092,0.00021044,2]
[357488224,1744084239483,-500.0,0.00021044,2]
[357488225,1744084239493,-500.0,0.00021044,2]
[357488226,1744084239503,-500.0,0.00021044,2]
[357488227,1744084239513,-500.0,0.00021044,2]
[357488228,1744084239523,-871.05,0.00021044,2]
[357488229,1744084239533,-500.0,0.00021044,2]
[357488230,1744084239543,-3462.23,0.00021044,2]
[357488231,1744084239554,-500.0,0.00021044,2]
[357488232,1744084239564,-200.0,0.00021044,2]
[357488233,1744084239574,-500.0,0.00021044,2]
[357488234,1744084239583,-500.0,0.00021044,2]
[357488235,1744084239593,-500.0,0.00021044,2]
[357488236,1744084239603,-500.0,0.00021044,2]
[357488237,1744084239613,-500.0,0.00021044,2]
[357488238,1744084239623,-1315.5,0.00021044,2]
[357488239,1744084239633,-500.0,0.00021044,2]
[357488240,1744084239644,-2104.79,0.00021044,2]
[357488241,1744084239655,-1299.31,0.00021044,2]
[357488242,1744084239665,-1035.32,0.00021044,2]
[357488243,1744084239675,-782.16,0.00021044,2]
[357488244,1744084239687,-500.0,0.00021044,2]
[357488245,1744084239697,-1222.29,0.00021044,2]
[357488246,1744084239707,-744.35,0.00021044,2]
[357488247,1744084239718,-500.0,0.00021044,2]
[357488248,1744084239728,-500.0,0.00021044,2]
[357488249,1744084239738,-1218.75,0.00021044,2]
[357488250,1744084239748,-500.0,0.00021044,2]
[357488251,1744084239758,-521.04,0.00021044,2]
[357488252,1744084239769,-500.0,0.00021044,2]
[357488253,1744084239778,-785.43,0.00021044,2]
[357488254,1744084239789,-1460.84,0.00021044,2]
[357488255,1744084239799,-500.0,0.00021044,2]
[357488256,1744084239809,-352.70119875,0.00021044,2]
[357488257,1744084239819,-708.66,0.00021044,2]
[357488258,1744084239829,-500.0,0.00021044,2]
[357488259,1744084239839,-500.0,0.00021045,2]
[357488260,1744084239849,-500.0,0.00021045,2]
[357488261,1744084239859,-500.0,0.00021045,2]
[357488262,1744084239869,-500.0,0.00021045,2]
[357488263,1744084239879,-500.0,0.00021045,2]
[357488264,1744084239889,-500.0,0.00021045,2]
[357488265,1744084239900,-500.0,0.00021045,2]
[357488266,1744084239911,-599.73,0.00021045,2]
[357488268,1744084239921,-500.0,0.00021045,2]
[357488269,1744084239936,-500.0,0.00021045,2]
[357488270,1744084239948,-500.0,0.00021045,2]
[357488271,1744084239958,-500.0,0.00021045,2]
[357488273,1744084239968,-500.0,0.00021045,2]
[357488274,1744084239978,-500.0,0.00021045,2]
[357488275,1744084239988,-500.0,0.00021045,2]
[357488276,1744084239999,-192.91527825,0.00021045,2]
[357488277,1744084240014,-500.0,0.00021045,2]
[357488278,1744084240024,-500.0,0.00021045,2]
[357488279,1744084240034,-1623.39,0.00021045,2]
[357488280,1744084240044,-2378.5,0.00021045,2]
[357488281,1744084240055,-500.0,0.00021045,2]
[357488282,1744084240065,-421.18235428,0.00021045,2]
[357488283,1744084240076,-500.0,0.00021045,2]
[357488284,1744084240086,-500.0,0.00021045,2]
[357488285,1744084240096,-500.0,0.00021045,2]
[357488286,1744084240106,-792.3,0.00021045,2]
[357488287,1744084240116,-903.87,0.00021045,2]
[357488288,1744084240125,-664.93,0.00021045,2]
[357488289,1744084240135,-500.0,0.00021045,2]
[357488290,1744084240145,-1301.98,0.00021045,2]
[357488291,1744084240156,-1468.73,0.00021045,2]
[357488292,1744084240166,-1145.82,0.00021045,2]
[357488293,1744084240176,-500.0,0.00021045,2]
[357488294,1744084240186,-500.0,0.00021045,2]
[357488295,1744084240196,-1020.27,0.00021045,2]
[357488296,1744084240208,-500.0,0.00021045,2]
[357488297,1744084240218,-500.0,0.00021045,2]
[357488298,1744084240228,-500.0,0.00021045,2]
[357488299,1744084240238,-500.0,0.00021045,2]
[357488300,1744084240247,-500.0,0.00021045,2]
[357488301,1744084240257,-500.0,0.00021045,2]
[357488302,1744084240268,-908.82,0.00021045,2]
[357488303,1744084240278,-500.0,0.00021045,2]
[357488304,1744084240288,-500.0,0.00021045,2]
[357488305,1744084240299,-500.0,0.00021045,2]
[357488306,1744084240310,-465.5857413,0.00021045,2]
[357488307,1744084240320,-500.0,0.00021045,2]
[357488308,1744084240330,-500.0,0.00021045,2]
[357488309,1744084240340,-794.58,0.00021045,2]
[357488310,1744084240350,-2049.97,0.00021045,2]
[357488311,1744084240360,-799.5,0.00021045,2]
[357488312,1744084240370,-1264.48,0.00021045,2]
[357488313,1744084240380,-500.0,0.00021045,2]
[357488314,1744084240390,-500.0,0.00021045,2]
[357488315,1744084240400,-500.0,0.00021045,2]
[357488316,1744084240411,-500.0,0.00021045,2]
[357488317,1744084240421,-1718.7,0.00021045,2]
[357488318,1744084240431,-500.0,0.00021045,2]
[357488319,1744084240441,-861.95,0.00021045,2]
[357488320,1744084240450,-500.0,0.00021045,2]
[357488321,1744084240460,-500.0,0.00021045,2]
[357488322,1744084240470,-503.26792871,0.00021045,2]
[357488323,1744084240480,-878.53,0.00021045,2]
[357488324,1744084240489,-500.0,0.00021045,2]
[357488325,1744084240499,-500.0,0.00021045,2]
[357488326,1744084240509,-2041.45,0.00021045,2]
[357488327,1744084240683,-588.47,0.00021045,2]
[357488328,1744084240694,-500.0,0.00021045,2]
[357488329,1744084240704,-595.72,0.00021045,2]
[357488330,1744084240713,-500.0,0.00021045,2]
[357488331,1744084240723,-1123.37,0.00021045,2]
[357488332,1744084240733,-1313.58,0.00021045,2]
[357488334,1744084240745,-500.0,0.00021046,2]
[357488335,1744084240755,-500.0,0.00021046,2]
[357488336,1744084240764,-500.0,0.00021046,2]
[357488337,1744084240774,-500.0,0.00021046,2]
[357488338,1744084240784,-500.0,0.00021046,2]
[357488339,1744084240794,-500.0,0.00021046,2]
[357488340,1744084240804,-351.79132055,0.00021046,2]
[357488341,1744084240814,-760.19,0.00021046,2]
[357488342,1744084240824,-984.79,0.00021046,2]
[357488343,1744084240834,-500.0,0.00021046,2]
[357488344,1744084240843,-150.38,0.00021046,2]
[357488345,1744084240853,-500.0,0.00021046,2]
[357488347,1744084240862,-500.0,0.00021046,2]
[357488348,1744084240871,-500.0,0.00021046,2]
[357488349,1744084240881,-500.0,0.00021046,2]
[357488350,1744084240891,-500.0,0.00021046,2]
[357488351,1744084240900,-500.0,0.00021046,2]
[357488352,1744084240910,-926.65,0.00021046,2]
[357488353,1744084240920,-500.0,0.00021046,2]
[357488354,1744084240930,-500.0,0.00021046,2]
[357488355,1744084240939,-743.65,0.00021046,2]
[357488356,1744084240949,-500.0,0.00021046,2]
[357488357,1744084240971,-645.71,0.00021046,2]
[357488358,1744084240983,-500.0,0.00021046,2]
[357488359,1744084240993,-500.0,0.00021046,2]
[357488360,1744084241004,-500.0,0.00021046,2]
[357488361,1744084241017,-500.0,0.00021046,2]
[357488362,1744084241027,-840.25,0.00021046,2]
[357488363,1744084241039,-3039.19,0.00021046,2]
[357488364,1744084241050,-815.31,0.00021046,2]
[357488365,1744084241060,-500.0,0.00021046,2]
[357488366,1744084241071,-500.0,0.00021046,2]
[357488367,1744084241081,-500.0,0.00021046,2]
[357488368,1744084241093,-500.0,0.00021046,2]
[357488369,1744084241104,-500.0,0.00021046,2]
[357488370,1744084241115,-500.0,0.00021046,2]
[357488371,1744084241125,-500.0,0.00021046,2]
[357488372,1744084241136,-500.0,0.00021046,2]
[357488373,1744084241147,-500.0,0.00021046,2]
[357488374,1744084241157,-527.65,0.00021046,2]
[357488375,1744084241167,-500.0,0.00021046,2]
[357488376,1744084241177,-680.96,0.00021046,2]
[357488377,1744084241188,-500.0,0.00021046,2]
[357488378,1744084241199,-1561.27,0.00021046,2]
[357488379,1744084241210,-518.98233638,0.00021046,2]
[357488380,1744084241221,-500.0,0.00021046,2]
[357488381,1744084241232,-500.0,0.00021046,2]
[357488382,1744084241242,-500.0,0.00021046,2]
[357488383,1744084241254,-500.0,0.00021046,2]
[357488384,1744084241267,-528.96,0.00021046,2]
[357488385,1744084241279,-821.16,0.00021046,2]
[357488386,1744084241291,-677.69,0.00021046,2]
[357488388,1744084241302,-677.69,0.00021046,2]
[357488390,1744084241312,-500.0,0.00021046,2]
[357488392,1744084241324,-500.0,0.00021046,2]
[357488394,1744084241334,-500.0,0.00021046,2]
[357488395,1744084241344,-500.0,0.00021046,2]
[357488396,1744084241354,-221.19675802,0.00021234,2]
[357488397,1744084241365,-677.69,0.00021315,2]
[357488399,1744084241376,-677.69,0.00021315,2]
[357488401,1744084241386,-677.69,0.00021315,2]
[357488402,1744084241397,-677.69,0.00021315,2]
[357488404,1744084241407,-677.69,0.00021315,2]
[357488405,1744084241417,-504.32029485,0.00021316,2]
[357488407,1744084241427,-502.04206776,0.00021316,2]
[357488408,1744084241438,-501.24232997,0.00021316,2]
[357488410,1744084241448,-338.42336301,0.00021316,2]
[357488412,1744084241458,-502.20083565,0.00021316,2]
[357488414,1744084241468,-500.0,0.00021316,2]
[357488416,1744084241480,-214.59994313,0.00021316,2]
[357488417,1744084241491,-500.0,0.00021316,2]
[357488418,1744084241501,-500.0,0.00021316,2]
[357488419,1744084241512,-500.0,0.00021316,2]
[357488420,1744084241529,-769.05,0.00021316,2]
[357488421,1744084241539,-500.0,0.00021316,2]
[357488422,1744084241550,-500.0,0.00021316,2]
[357488423,1744084241560,-500.0,0.00021316,2]
[357488424,1744084241571,-500.0,0.00021316,2]
[357488425,1744084241582,-500.0,0.00021316,2]
[357488426,1744084241592,-500.0,0.00021316,2]
[357488427,1744084241607,-500.0,0.00021316,2]
[357488428,1744084241618,-677.69,0.00021316,2]
[357488429,1744084241628,-677.69,0.00021316,2]
[357488430,1744084241639,-677.69,0.00021316,2]
[357488431,1744084241649,-677.69,0.00021316,2]
[357488432,1744084241658,-677.69,0.00021316,2]
[357488433,1744084241670,-677.69,0.00021316,2]
[357488434,1744084241680,-677.69,0.00021316,2]
[357488435,1744084241691,-677.69,0.00021316,2]
[357488436,1744084241701,-677.69,0.00021316,2]
[357488437,1744084241712,-677.69,0.00021316,2]
[357488438,1744084241723,-677.69,0.00021316,2]
[357488439,1744084241733,-677.69,0.00021316,2]
[357488440,1744084241742,-677.69,0.00021316,2]
[357488441,1744084241752,-677.69,0.00021316,2]
[357488442,1744084241762,-677.81,0.00021316,2]
[357488443,1744084241771,-500.0,0.00021317,2]
[357488444,1744084241781,-500.0,0.00021317,2]
[357488445,1744084241790,-500.0,0.00021318,2]
[357488446,1744084241800,-500.0,0.00021318,2]
[357488447,1744084241810,-500.0,0.00021318,2]
[357488448,1744084241819,-513.52426748,0.00021318,2]
[357488449,1744084241829,-500.0,0.00021318,2]
[357488450,1744084241840,-500.0,0.00021318,2]
[357488451,1744084241850,-500.0,0.00021318,2]
[357488452,1744084241861,-500.0,0.00021318,2]
[357488453,1744084241871,-500.0,0.00021318,2]
[357488454,1744084241882,-296.45367776,0.00021318,2]
[357488455,1744084241891,-500.0,0.00021318,2]
[357488456,1744084241902,-871.05,0.00021318,2]
[357488457,1744084241912,-500.0,0.00021318,2]
[357488458,1744084241922,-3462.23,0.00021318,2]
[357488459,1744084241932,-500.0,0.00021318,2]
[357488460,1744084241942,-500.0,0.00021318,2]
[357488461,1744084241951,-500.0,0.00021318,2]
[357488462,1744084241961,-500.0,0.00021318,2]
[357488463,1744084241971,-500.0,0.00021318,2]
[357488464,1744084241981,-1315.5,0.00021318,2]
[357488465,1744084241991,-500.0,0.00021318,2]
[357488466,1744084242003,-2104.79,0.00021318,2]
[357488467,1744084242017,-1299.31,0.00021318,2]
[357488468,1744084242027,-1035.32,0.00021318,2]
[357488469,1744084242038,-782.16,0.00021318,2]
[357488470,1744084242051,-500.0,0.00021318,2]
[357488471,1744084242061,-1222.29,0.00021318,2]
[357488472,1744084242071,-744.35,0.00021318,2]
[357488473,1744084242082,-500.0,0.00021318,2]
[357488474,1744084242093,-506.90679761,0.00021318,2]
[357488475,1744084242104,-1218.75,0.00021318,2]
[357488476,1744084242114,-500.0,0.00021318,2]
[357488477,1744084242125,-521.04,0.00021318,2]
[357488478,1744084242136,-500.0,0.00021318,2]
[357488479,1744084242147,-785.43,0.00021318,2]
[357488480,1744084242158,-1460.84,0.00021318,2]
[357488481,1744084242169,-500.0,0.00021318,2]
[357488482,1744084242178,-708.66,0.00021318,2]
[357488483,1744084242189,-500.0,0.00021318,2]
[357488484,1744084242198,-500.0,0.00021319,2]
[357488485,1744084242209,-500.0,0.00021319,2]
[357488486,1744084242219,-500.0,0.00021319,2]
[357488487,1744084242229,-500.0,0.00021319,2]
[357488488,1744084242239,-500.0,0.00021319,2]
[357488489,1744084242253,-500.0,0.00021319,2]
[357488490,1744084242269,-500.0,0.00021319,2]
[357488491,1744084242282,-599.73,0.00021319,2]
[357488492,1744084242293,-500.0,0.00021319,2]
[357488493,1744084242303,-500.0,0.00021319,2]
[357488494,1744084242314,-500.0,0.00021319,2]
[357488495,1744084242323,-500.0,0.00021319,2]
[357488496,1744084242334,-500.0,0.00021319,2]
[357488497,1744084242345,-500.0,0.00021319,2]
[357488498,1744084242355,-500.0,0.00021319,2]
[357488499,1744084242365,-500.0,0.00021319,2]
[357488500,1744084242375,-500.0,0.00021319,2]
[357488501,1744084242385,-1623.39,0.00021319,2]
[357488502,1744084242395,-2378.5,0.00021319,2]
[357488503,1744084242407,-500.0,0.00021319,2]
[357488504,1744084242417,-500.0,0.00021319,2]
[357488505,1744084242428,-500.0,0.00021319,2]
[357488506,1744084242438,-500.0,0.00021319,2]
[357488507,1744084242448,-792.3,0.00021319,2]
[357488509,1744084242458,-903.87,0.00021319,2]
[357488510,1744084242468,-664.93,0.00021319,2]
[357488511,1744084242479,-500.0,0.00021319,2]
[357488512,1744084242490,-1301.98,0.00021319,2]
[357488513,1744084242500,-1468.73,0.00021319,2]
[357488515,1744084242511,-1145.82,0.00021319,2]
[357488518,1744084242535,-500.0,0.00021319,2]
[357488519,1744084242552,-500.0,0.00021319,2]
[357488520,1744084242569,-1020.27,0.00021319,2]
[357488521,1744084242584,-500.0,0.00021319,2]
[357488522,1744084242600,-500.0,0.00021319,2]
[357488523,1744084242612,-500.0,0.00021319,2]
[357488524,1744084242625,-500.0,0.00021319,2]
[357488525,1744084242641,-500.0,0.00021319,2]
[357488526,1744084242655,-505.71703424,0.00021319,2]
[357488527,1744084242669,-908.82,0.00021319,2]
[357488528,1744084242682,-205.79063171,0.00021319,2]
[357488529,1744084242695,-500.0,0.00021319,2]
[357488530,1744084242710,-500.0,0.00021319,2]
[357488531,1744084242723,-500.0,0.00021319,2]
[357488532,1744084242738,-500.0,0.00021319,2]
[357488534,1744084242752,-794.58,0.00021319,2]
[357488535,1744084242766,-2049.97,0.00021319,2]
[357488536,1744084242782,-799.5,0.00021319,2]
[357488537,1744084242795,-1264.48,0.00021319,2]
[357488538,1744084242807,-500.0,0.00021319,2]
[357488539,1744084242821,-500.0,0.00021319,2]
[357488540,1744084242836,-500.0,0.00021319,2]
[357488541,1744084242850,-500.0,0.00021319,2]
[357488542,1744084242863,-1718.7,0.00021319,2]
[357488543,1744084242877,-500.0,0.00021319,2]
[357488544,1744084242891,-861.95,0.00021319,2]
[357488545,1744084242905,-500.0,0.00021319,2]
[357488546,1744084242917,-500.0,0.00021319,2]
[357488547,1744084242930,-878.53,0.00021319,2]
[357488548,1744084242942,-500.0,0.00021319,2]
[357488549,1744084242953,-500.0,0.00021319,2]
[357488550,1744084242963,-2041.45,0.00021319,2]
[357488551,1744084242977,-588.47,0.00021319,2]
[357488552,1744084242989,-260.21501903,0.00021319,2]
[357488553,1744084243002,-595.72,0.00021319,2]
[357488554,1744084243019,-500.0,0.00021319,2]
[357488555,1744084243033,-1123.37,0.00021319,2]
[357488556,1744084243046,-1313.58,0.00021319,2]
[357488557,1744084243059,-500.0,0.0002132,2]
[357488558,1744084243074,-500.0,0.0002132,2]
[357488559,1744084243087,-500.0,0.0002132,2]
[357488560,1744084243101,-500.0,0.0002132,2]
[357488561,1744084243114,-500.0,0.0002132,2]
[357488562,1744084243128,-500.0,0.0002132,2]
[357488563,1744084243140,-760.19,0.0002132,2]
[357488564,1744084243152,-984.79,0.0002132,2]
[357488565,1744084243163,-500.0,0.0002132,2]
[357488566,1744084243174,-500.0,0.0002132,2]
[357488567,1744084243185,-292.88364408,0.0002132,2]
[357488568,1744084243199,-500.0,0.0002132,2]
[357488569,1744084243211,-500.0,0.0002132,2]
[357488570,1744084243226,-500.0,0.0002132,2]
[357488571,1744084243240,-926.65,0.0002132,2]
[357488572,1744084243253,-500.0,0.0002132,2]
[357488573,1744084243264,-500.0,0.0002132,2]
[357488574,1744084243276,-743.65,0.0002132,2]
[357488575,1744084243288,-500.0,0.0002132,2]
[357488576,1744084243299,-645.71,0.0002132,2]
[357488577,1744084243313,-500.0,0.0002132,2]
[357488578,1744084243325,-500.0,0.0002132,2]
[357488579,1744084243338,-500.0,0.0002132,2]
[357488580,1744084243348,-500.0,0.0002132,2]
[357488581,1744084243360,-840.25,0.0002132,2]
[357488582,1744084243371,-3039.19,0.0002132,2]
[357488583,1744084243382,-815.31,0.0002132,2]
[357488584,1744084243395,-500.0,0.0002132,2]
[357488587,1744084243406,-500.0,0.0002132,2]
[357488589,1744084243418,-500.0,0.0002132,2]
[357488590,1744084243430,-500.0,0.0002132,2]
[357488591,1744084243441,-500.0,0.0002132,2]
[357488592,1744084243452,-174.51510736,0.0002132,2]
[357488594,1744084243465,-500.0,0.0002132,2]
[357488596,1744084243476,-500.0,0.0002132,2]
[357488597,1744084243488,-500.0,0.0002132,2]
[357488599,1744084243500,-527.65,0.0002132,2]
[357488601,1744084243511,-500.0,0.0002132,2]
[357488603,1744084243523,-680.96,0.0002132,2]
[357488604,1744084243535,-500.0,0.0002132,2]
[357488606,1744084243548,-1561.27,0.0002132,2]
[357488608,1744084243560,-500.0,0.0002132,2]
[357488610,1744084243572,-500.0,0.0002132,2]
[357488611,1744084243584,-500.0,0.0002132,2]
[357488612,1744084243596,-500.0,0.0002132,2]
[357488614,1744084243612,-528.96,0.0002132,2]
[357488616,1744084243623,-821.16,0.0002132,2]
[357488617,1744084243635,-500.0,0.0002132,2]
[357488619,1744084243647,-500.0,0.0002132,2]
[357488621,1744084243659,-512.33678944,0.0002132,2]
[357488622,1744084243671,-500.0,0.0002132,2]
[357488623,1744084243683,-500.0,0.00021373,2]
[357488624,1744084243694,-422.52295166,0.00021373,2]
[357488625,1744084243706,-500.0,0.00021373,2]
[357488626,1744084243718,-500.0,0.00021373,2]
[357488627,1744084243731,-503.04786196,0.00021373,2]
[357488628,1744084243743,-500.0,0.00021373,2]
[357488629,1744084243755,-501.530967,0.00021373,2]
[357488630,1744084243766,-146.62366534,0.00021373,2]
[357488631,1744084243941,-495.67434918,0.00021373,2]
[357488632,1744084243953,-325.46631462,0.00021373,2]
[357488633,1744084243967,-176.30454085,0.00021373,2]
[357488634,1744084243979,-209.71274172,0.00021373,2]
[357488635,1744084243994,-290.28725828,0.00021373,2]
[357488636,1744084244006,-500.0,0.00021373,2]
[357488637,1744084244021,-102.02930874,0.00021373,2]
[357488638,1744084244054,-397.97069126,0.00021373,2]
[357488639,1744084244066,-500.0,0.00021373,2]
[357488640,1744084244077,-500.0,0.00021373,2]
[357488641,1744084244091,-500.0,0.00021373,2]
[357488642,1744084244103,-304.85310053,0.00021373,2]
[357488643,1744084244118,-195.14689947,0.00021373,2]
[357488644,1744084244130,-500.0,0.00021373,2]
[357488645,1744084244141,-500.0,0.00021373,2]
[357488646,1744084244154,-500.0,0.00021373,2]
[357488647,1744084244166,-500.0,0.00021373,2]
[357488648,1744084244179,-500.0,0.00021373,2]
[357488649,1744084244192,-228.60776277,0.00021505,2]
[357488650,1744084244208,-1068.94280158,0.00021505,2]
[357488651,1744084244220,-487.85518653,0.0002159,2]
[357488652,1744084244231,-500.0,0.0002159,2]
[357488653,1744084244243,-178.9,0.0002159,2]
[357488654,1744084244253,-769.05,0.0002159,2]
[357488655,1744084244263,-500.0,0.0002159,2]
[357488656,1744084244274,-500.0,0.0002159,2]
[357488657,1744084244284,-500.0,0.0002159,2]
[357488658,1744084244293,-500.0,0.0002159,2]
[357488659,1744084244303,-500.0,0.00021591,2]
[357488660,1744084244313,-500.0,0.00021591,2]
[357488661,1744084244323,-500.0,0.00021592,2]
[357488662,1744084244333,-500.0,0.00021592,2]
[357488663,1744084244343,-500.0,0.00021592,2]
[357488664,1744084244353,-500.0,0.00021592,2]
[357488665,1744084244363,-500.0,0.00021592,2]
[357488666,1744084244374,-500.0,0.00021592,2]
[357488667,1744084244384,-500.0,0.00021592,2]
[357488668,1744084244394,-500.0,0.00021592,2]
[357488669,1744084244635,-500.0,0.00021592,2]
[357488670,1744084244658,-871.05,0.00021592,2]
[357488671,1744084244673,-500.0,0.00021592,2]
[357488672,1744084244683,-2973.18816253,0.00021592,2]
[357488677,1744084246141,-0.02255332,0.00021592,2]
[357488678,1744084246233,-2401.81924418,0.00020671,2]
[357488679,1744084246245,-27588.21314983,0.00020671,2]
[357488680,1744084246257,-13558.63576574,0.00020671,2]
[357488681,1744084246268,-39791.59800018,0.00020671,2]
[357488682,1744084246300,-2986.49999998,0.00020671,2]